bitfinex-derivatives/quotes_BTCF0:USTF0_20241120
["timestamp","ask_amount","ask_price","bid_price","bid_amount"]
[1732125971191,0.053078,94092.0,94077.0,0.3608]
[1732125971382,0.053079,94091.0,94089.0,0.3608]
[1732125971677,0.053079,94091.0,94090.0,0.0316]
[1732125971870,0.053079,94091.0,94090.0,0.0629]
[1732125972164,0.053075,94098.0,94090.0,0.0629]
[1732125972473,0.00159479,94108.0,94097.0,0.51553806]
[1732125972665,0.05466379,94108.0,94107.0,0.15473806]
[1732125972859,0.05466379,94108.0,94107.0,1.86321806]
[1732125972860,0.00159479,94108.0,94107.0,1.86321806]
[1732125973361,0.04251041,94129.0,94108.0,0.0001283]
[1732125973570,0.3613,94130.0,94108.0,0.0001283]
[1732125973571,0.053058,94128.0,94118.0,0.15473806]
[1732125973758,0.053058,94128.0,94108.0,0.0001283]
[1732125973759,0.3608,94122.0,94110.0,0.15473806]
[1732125973971,0.3608,94119.0,94108.0,0.0001283]
[1732125974165,0.053068,94109.0,94108.0,0.0001283]
[1732125974871,0.413868,94109.0,94108.0,0.0001283]
[1732125975080,0.05308,94089.0,94088.0,0.21007419]
[1732125975462,0.05308,94089.0,94088.0,1.71007419]
[1732125975760,0.05308,94089.0,94088.0,0.20848]
[1732125976264,0.053089,94073.0,94072.0,1.5]
[1732125976656,0.053089,94073.0,94071.0,9.323e-05]
[1732125977669,0.053084,94082.0,94071.0,9.323e-05]
[1732125977961,0.053084,94082.0,94081.0,0.51553806]
[1732125979459,0.053084,94082.0,94081.0,0.3608]
[1732125979766,0.053084,94082.0,94071.0,9.323e-05]
[1732125979957,0.053089,94072.0,94071.0,9.323e-05]
[1732125980570,0.413889,94072.0,94071.0,9.323e-05]
[1732125980752,0.053089,94072.0,94071.0,0.20857323]
[1732125982164,0.00011484,94089.0,94071.0,0.20857323]
[1732125982367,0.00011484,94089.0,94075.0,0.15473806]
[1732125982564,0.053084,94082.0,94071.0,0.56937323]
[1732125982760,0.00011484,94089.0,94071.0,0.56937323]
[1732125983069,0.053082,94086.0,94085.0,0.15473806]
[1732125984065,0.00011484,94089.0,94071.0,0.56937323]
[1732125984370,0.00011484,94089.0,94071.0,0.20857323]
[1732125984371,0.053089,94072.0,94071.0,0.20857323]
[1732125984869,0.3608,94084.0,94071.0,0.20857323]
[1732125985069,0.3608,94084.0,94083.0,0.15473806]
[1732125986158,0.3608,94101.0,94083.0,0.15473806]
[1732125986370,0.413873,94101.0,94100.0,0.15419251]
[1732125986669,0.053073,94101.0,94100.0,0.37155251]
[1732125987369,0.413873,94101.0,94100.0,0.37155251]
[1732125987566,0.36136001,94111.0,94100.0,0.37155251]
[1732125987868,0.3608,94111.0,94100.0,0.37155251]
[1732125988058,0.413867,94111.0,94110.0,0.15473806]
[1732125988967,0.413867,94111.0,94102.0,0.15473806]
[1732125988968,0.3608,94111.0,94102.0,0.15473806]
[1732125989275,0.053072,94103.0,94102.0,0.15473806]
[1732125989870,0.053072,94103.0,94101.0,1.85752]
[1732125990170,0.053072,94103.0,94101.0,0.35684]
[1732125990367,0.3608,94102.0,94101.0,0.35684]
[1732125990969,0.6796,94102.0,94095.0,0.00076]
[1732125991167,0.6796,94102.0,94081.0,0.02122205]
[1732125991168,0.053084,94082.0,94081.0,0.02122205]
[1732125992072,0.053084,94082.0,94080.0,0.21736]
[1732125992262,0.053084,94082.0,94080.0,0.23858205]
[1732125992460,0.053084,94082.0,94075.0,0.39932263]
[1732125992660,0.053087,94076.0,94075.0,0.39932263]
[1732125992856,0.053087,94076.0,94075.0,0.61668263]
[1732125994468,0.36140001,94083.0,94075.0,0.61668263]
[1732125994666,0.3608,94083.0,94081.0,0.15473806]
[1732125994873,0.413883,94083.0,94081.0,0.15473806]
[1732125995459,0.00056001,94086.0,94081.0,0.15473806]
[1732125995663,0.053074,94099.0,94083.0,0.053082]
[1732125995864,0.053074,94099.0,94098.0,0.15473806]
[1732125996381,0.053071,94105.0,94098.0,0.15473806]
[1732125996564,0.053071,94105.0,94104.0,0.15473806]
[1732125996870,0.053071,94105.0,94104.0,0.37981806]
[1732125997782,0.053071,94105.0,94104.0,0.22508]
[1732126001177,0.053073,94100.0,94098.0,0.04085823]
[1732126001379,0.053071,94105.0,94084.0,0.11467738]
[1732126001380,0.053074,94098.0,94096.0,0.22508]
[1732126002276,0.3608,94097.0,94096.0,0.22508]
[1732126004373,0.053074,94098.0,94096.0,0.24630475]
[1732126004587,0.3608,94119.0,94096.0,0.40104281]
[1732126004873,0.3608,94119.0,94107.0,0.15473806]
[1732126004874,0.053069,94108.0,94107.0,0.15473806]
[1732126006568,0.3608,94119.0,94107.0,0.15473806]
[1732126006768,0.053067,94111.0,94108.0,0.0306]
[1732126007266,0.053067,94111.0,94109.0,1.5]
[1732126007771,0.36144,94119.0,94109.0,1.5]
[1732126007772,0.00064,94119.0,94109.0,1.5]
[1732126007970,0.053059,94125.0,94118.0,0.15473806]
[1732126008273,0.053058,94129.0,94124.0,0.15473806]
[1732126008577,0.0005,94130.0,94125.0,0.22508]
[1732126008578,0.053058,94128.0,94125.0,0.22508]
[1732126008776,0.0005,94130.0,94125.0,0.22508]
[1732126008980,0.053059,94126.0,94125.0,0.22508]
[1732126009370,0.413859,94126.0,94125.0,0.22508]
[1732126010270,0.413859,94126.0,94109.0,1.50088]
[1732126010271,0.053068,94110.0,94109.0,1.50088]
[1732126010479,0.053068,94110.0,94109.0,0.2176]
[1732126011178,0.053068,94110.0,94109.0,0.25910425]
[1732126012675,0.053065,94115.0,94109.0,0.25910425]
[1732126012876,0.413855,94132.0,94109.0,0.25910425]
[1732126012877,0.053066,94114.0,94109.0,0.25910425]
[1732126013183,0.053065,94114.0,94113.0,0.15473806]
[1732126013372,0.053063,94118.0,94113.0,0.15473806]
[1732126013571,0.053063,94118.0,94114.0,0.0307]
[1732126013879,0.00056001,94119.0,94114.0,0.0307]
[1732126014069,0.3608,94132.0,94114.0,0.0307]
[1732126014070,0.05306,94124.0,94114.0,0.0307]
[1732126014272,0.05306,94124.0,94123.0,0.15473806]
[1732126014471,0.05306,94124.0,94123.0,0.15273806]
[1732126014675,0.3608,94124.0,94113.0,0.15473806]
[1732126014875,0.3608,94124.0,94116.0,0.15473806]
[1732126015076,0.413864,94117.0,94116.0,0.15473806]
[1732126017785,0.053064,94117.0,94116.0,0.15473806]
[1732126017987,0.00060001,94122.0,94116.0,0.15473806]
[1732126018176,0.3608,94126.0,94116.0,0.15473806]
[1732126018378,0.3608,94126.0,94125.0,0.15473806]
[1732126018778,0.32961294,94134.0,94125.0,0.67027612]
[1732126018986,0.36136001,94152.0,94126.0,0.18774281]
[1732126019178,0.053047,94146.0,94145.0,0.15473806]
[1732126019980,0.36144,94152.0,94145.0,0.15473806]
[1732126020187,0.053047,94147.0,94145.0,0.15473806]
[1732126020778,0.053047,94147.0,94146.0,0.3608]
[1732126021197,0.40213149,94171.0,94146.0,0.3608]
[1732126021396,0.36140001,94171.0,94156.0,0.15473806]
[1732126021692,0.053041,94157.0,94156.0,0.15473806]
[1732126021895,0.053041,94157.0,94146.0,0.3608]
[1732126021896,0.053047,94147.0,94146.0,0.3608]
[1732126024485,0.413834,94171.0,94146.0,0.3608]
[1732126024688,0.053035,94168.0,94165.0,0.15473806]
[1732126024892,0.414474,94171.0,94165.0,0.15473806]
[1732126025191,0.414474,94171.0,94146.0,0.3608]
[1732126025192,0.053036,94166.0,94148.0,0.15473806]
[1732126025396,0.3608,94171.0,94148.0,0.15473806]
[1732126025397,0.053046,94149.0,94148.0,0.15473806]
[1732126025686,0.053047,94147.0,94146.0,0.38201269]
[1732126025889,0.053047,94147.0,94146.0,0.53675075]
[1732126027881,0.053036,94167.0,94152.0,0.053044]
[1732126028198,0.053036,94167.0,94146.0,0.85539075]
[1732126028199,0.053037,94165.0,94161.0,0.15473806]
[1732126028385,0.053037,94165.0,94164.0,0.15473806]
[1732126028692,0.053037,94165.0,94164.0,0.36485806]
[1732126029895,0.053027,94183.0,94164.0,0.36485806]
[1732126030194,0.053036,94167.0,94166.0,0.3608]
[1732126030496,0.053037,94165.0,94164.0,0.21012]
[1732126031081,0.413837,94165.0,94164.0,0.21012]
[1732126031286,0.413837,94165.0,94162.0,1.50092]
[1732126031287,0.053038,94163.0,94162.0,0.00092]
[1732126031484,0.053041,94157.0,94136.0,0.15473806]
[1732126031691,0.053047,94147.0,94136.0,0.51137806]
[1732126031898,0.053047,94147.0,94146.0,0.23133269]
[1732126032286,0.053047,94147.0,94146.0,0.02121269]
[1732126032485,0.053047,94147.0,94146.0,0.23133269]
[1732126034096,0.053047,94147.0,94146.0,0.20144]
[1732126034591,0.36136001,94152.0,94142.0,0.20144]
[1732126034899,0.413849,94143.0,94142.0,0.20144]
[1732126035083,0.413849,94143.0,94142.0,0.22265027]
[1732126035288,0.42800277,94143.0,94142.0,0.22265027]
[1732126036900,0.053052,94137.0,94136.0,1.85664]
[1732126037098,0.053052,94137.0,94136.0,2.09967126]
[1732126037305,0.053052,94137.0,94136.0,0.59967126]
[1732126038809,0.413852,94137.0,94136.0,0.59967126]
[1732126039328,0.42791859,94137.0,94136.0,0.59967126]
[1732126040027,0.42791859,94137.0,94136.0,0.39823126]
[1732126040523,0.42791859,94137.0,94136.0,0.35664]
[1732126041022,0.4279844,94137.0,94136.0,0.35664]
[1732126041524,0.413852,94137.0,94136.0,0.35664]
[1732126041728,0.42817644,94137.0,94136.0,0.35664]
[1732126041924,0.06737644,94137.0,94136.0,0.35664]
[1732126042124,0.06737675,94137.0,94136.0,0.35664]
[1732126042526,0.06737806,94137.0,94136.0,0.35664]
[1732126043221,0.053052,94137.0,94136.0,0.35664]
[1732126043627,0.413852,94137.0,94128.0,9.7e-07]
[1732126043816,0.3608,94129.0,94103.0,0.033]
[1732126044022,0.053065,94115.0,94106.0,0.19348]
[1732126044821,0.0531651,94115.0,94111.0,7.947e-05]
[1732126045025,0.0531651,94115.0,94114.0,0.38201269]
[1732126045026,0.0001001,94115.0,94114.0,0.38201269]
[1732126045214,0.053062,94121.0,94114.0,0.38201269]
[1732126045416,0.053058,94127.0,94120.0,0.15473806]
[1732126045725,0.053058,94127.0,94115.0,0.0302]
[1732126045726,0.053058,94127.0,94126.0,0.15473806]
[1732126045927,0.053058,94127.0,94126.0,0.34821806]
[1732126046321,0.3608,94144.0,94126.0,0.34821806]
[1732126046528,0.053051,94140.0,94139.0,0.15473806]
[1732126048028,0.053055,94133.0,94132.0,0.3608]
[1732126048221,0.053056,94130.0,94129.0,0.35672]
[1732126048923,0.053056,94130.0,94129.0,0.37793875]
[1732126050024,0.053056,94130.0,94129.0,0.41892475]
[1732126050638,0.053062,94120.0,94119.0,0.00088]
[1732126050821,0.053067,94112.0,94111.0,0.19355947]
[1732126053532,0.413867,94112.0,94111.0,0.19355947]
[1732126053940,0.053067,94112.0,94111.0,0.19355947]
[1732126054242,0.413867,94112.0,94111.0,0.19355947]
[1732126054440,0.413867,94112.0,94111.0,7.947e-05]
[1732126054845,0.053067,94112.0,94111.0,7.947e-05]
[1732126056439,0.3608,94124.0,94111.0,7.947e-05]
[1732126056642,0.053067,94112.0,94111.0,7.947e-05]
[1732126059646,0.053067,94112.0,94111.0,0.19355947]
[1732126061652,0.404727,94112.0,94111.0,7.947e-05]
[1732126061950,0.737527,94112.0,94111.0,4.7e-07]
[1732126062151,0.7522799,94112.0,94111.0,4.7e-07]
[1732126062340,0.77588582,94112.0,94111.0,4.7e-07]
[1732126062660,0.76113752,94112.0,94111.0,4.7e-07]
[1732126062946,0.76721028,94112.0,94111.0,4.7e-07]
[1732126063248,0.46721028,94112.0,94111.0,4.7e-07]
[1732126063547,0.13369371,94112.0,94111.0,4.7e-07]
[1732126064154,0.05318192,94112.0,94111.0,4.7e-07]
[1732126066743,0.00011492,94112.0,94111.0,4.7e-07]
[1732126066943,0.05318192,94112.0,94111.0,4.7e-07]
[1732126067441,0.00011492,94112.0,94111.0,0.19352047]
[1732126067643,0.053057,94130.0,94114.0,0.053065]
[1732126067845,0.0321,94150.0,94111.0,0.19352047]
[1732126067846,0.005,94145.0,94129.0,0.15473806]
[1732126068045,0.053055,94132.0,94130.0,0.22622]
[1732126068446,0.053051,94140.0,94130.0,0.22622]
[1732126068746,0.3608,94151.0,94139.0,0.15473806]
[1732126068747,0.053051,94141.0,94139.0,0.15473806]
[1732126068943,0.053048,94146.0,94139.0,0.15473806]
[1732126069249,0.053048,94146.0,94145.0,0.15473806]
[1732126070552,0.3608,94160.0,94145.0,0.15473806]
[1732126070754,0.053047,94147.0,94145.0,0.15473806]
[1732126072557,0.053052,94138.0,94137.0,0.15473806]
[1732126072753,0.053052,94138.0,94137.0,0.34061806]
[1732126073560,0.3608,94160.0,94137.0,0.34061806]
[1732126073754,0.053046,94148.0,94147.0,0.15473806]
[1732126076151,0.3608,94160.0,94147.0,0.47337806]
[1732126076350,0.3608,94160.0,94155.0,0.15473806]
[1732126076555,0.053042,94156.0,94155.0,0.15473806]
[1732126078461,0.053039,94161.0,94155.0,0.15473806]
[1732126078760,0.053037,94166.0,94156.0,0.0313]
[1732126078962,0.053037,94166.0,94165.0,0.15473806]
[1732126079953,0.053026,94184.0,94165.0,0.15473806]
[1732126080160,0.36136001,94188.0,94178.0,0.15473806]
[1732126080363,0.053029,94180.0,94179.0,0.18584]
[1732126080672,0.053029,94180.0,94179.0,0.21714]
[1732126081965,0.053029,94180.0,94179.0,0.0313]
[1732126082164,0.053029,94180.0,94177.0,0.18591803]
[1732126082165,0.053029,94178.0,94177.0,0.18591803]
[1732126083664,0.053036,94166.0,94165.0,0.18584]
[1732126086061,0.053036,94166.0,94164.0,0.0001307]
[1732126086261,0.053036,94166.0,94165.0,0.1858]
[1732126086469,0.053036,94166.0,94164.0,0.0001307]
[1732126086670,0.053036,94166.0,94165.0,0.1858]
[1732126087471,0.053032,94174.0,94165.0,0.8652]
[1732126087677,0.053032,94174.0,94171.0,0.15473806]
[1732126087859,0.053032,94174.0,94172.0,0.0323]
[1732126088862,7.803e-05,94178.0,94173.0,0.3608]
[1732126089462,0.053031,94175.0,94173.0,0.3608]
[1732126090268,7.803e-05,94178.0,94173.0,0.3608]
[1732126091277,1e-08,94178.0,94173.0,0.3608]
[1732126091673,0.005,94201.0,94173.0,0.3608]
[1732126091879,0.053022,94191.0,94186.0,0.3608]
[1732126092064,0.053022,94191.0,94184.0,0.15473806]
[1732126092065,0.053022,94191.0,94190.0,0.15473806]
[1732126092272,0.053022,94191.0,94190.0,0.34053806]
[1732126093274,0.053022,94191.0,94190.0,0.33345806]
[1732126093480,0.36136001,94194.0,94190.0,0.33345806]
[1732126093673,0.3608,94194.0,94190.0,0.33345806]
[1732126093880,0.00056001,94204.0,94191.0,0.3608]
[1732126094174,0.3608,94218.0,94191.0,0.3608]
[1732126094175,0.02013899,94200.0,94199.0,0.15473806]
[1732126094380,1e-08,94200.0,94199.0,0.15473806]
[1732126094568,1e-08,94200.0,94199.0,0.51553806]
[1732126095477,0.00068,94214.0,94199.0,0.67027612]
[1732126095478,0.053011,94211.0,94199.0,0.67027612]
[1732126095777,0.053011,94211.0,94210.0,0.15473806]
[1732126095979,0.053011,94211.0,94210.0,0.33345806]
[1732126096189,0.00068,94214.0,94210.0,0.33345806]
[1732126096572,0.05301,94212.0,94210.0,0.33345806]
[1732126097677,0.00068,94214.0,94201.0,0.15473806]
[1732126097986,0.053015,94203.0,94202.0,0.17868]
[1732126098679,0.053015,94203.0,94201.0,0.15473806]
[1732126098879,0.053015,94203.0,94202.0,0.17868]
[1732126099070,0.06631511,94203.0,94202.0,0.17868]
[1732126099771,0.053022,94191.0,94190.0,0.02120578]
[1732126100478,0.36136001,94198.0,94188.0,0.15488578]
[1732126100479,0.053023,94189.0,94188.0,0.15488578]
[1732126101878,0.053023,94189.0,94188.0,0.17609056]
[1732126102081,0.3608,94209.0,94188.0,0.53689056]
[1732126102288,0.413812,94209.0,94208.0,0.15473806]
[1732126102486,0.053012,94209.0,94208.0,0.17868]
[1732126105088,0.053012,94209.0,94208.0,0.53948]
[1732126106080,0.00624,94210.0,94208.0,0.53948]
[1732126106589,0.052995,94240.0,94208.0,0.89592]
[1732126106590,0.046767,94219.0,94208.0,0.89592]
[1732126106888,0.046767,94219.0,94218.0,0.15473806]
[1732126108487,0.046767,94219.0,94210.0,0.15473806]
[1732126108680,0.053011,94211.0,94208.0,0.42126863]
[1732126108880,0.053011,94211.0,94208.0,0.39902385]
[1732126108881,0.413812,94209.0,94208.0,0.39902385]
[1732126109083,0.06591051,94209.0,94208.0,0.56978385]
[1732126109489,0.06591051,94209.0,94208.0,0.35644]
[1732126109681,0.06591051,94209.0,94208.0,0.5272]
[1732126109880,0.08654977,94209.0,94195.0,1.5]
[1732126110192,0.03347552,94208.0,94194.0,0.15473806]
[1732126110397,0.053013,94208.0,94207.0,0.02119555]
[1732126110691,0.053013,94208.0,94194.0,1.69683411]
[1732126110692,0.03347813,94208.0,94194.0,1.69683411]
[1732126110897,0.05302,94195.0,94194.0,1.69683411]
[1732126111193,0.05302,94195.0,94194.0,0.36759411]
[1732126113182,0.05302,94195.0,94194.0,0.21285605]
[1732126113403,0.3715,94195.0,94176.0,0.02120478]
[1732126113694,0.3715,94195.0,94181.0,0.17076]
[1732126113695,0.053027,94182.0,94181.0,0.17076]
[1732126113903,0.413827,94182.0,94181.0,0.17076]
[1732126114087,0.413827,94182.0,94171.0,0.15473806]
[1732126114088,0.053037,94165.0,94162.0,0.51117806]
[1732126114282,0.053037,94165.0,94164.0,0.1709307]
[1732126114494,0.3608,94172.0,94164.0,0.21272657]
[1732126114682,0.05303,94178.0,94171.0,0.15473806]
[1732126114880,0.05303,94178.0,94177.0,0.15473806]
[1732126114881,0.03761813,94178.0,94177.0,0.15473806]
[1732126115889,0.005,94199.0,94177.0,0.15473806]
[1732126116198,0.053022,94191.0,94190.0,0.15473806]
[1732126116496,0.06599861,94191.0,94190.0,0.32553806]
[1732126116898,0.01297661,94191.0,94190.0,0.32553806]
[1732126117085,0.053019,94197.0,94190.0,0.32553806]
[1732126117283,0.053019,94197.0,94196.0,0.15473806]
[1732126118294,0.01309639,94197.0,94196.0,0.15473806]
[1732126118492,0.053013,94208.0,94196.0,0.15473806]
[1732126118694,0.01309621,94207.0,94205.0,0.3608]
[1732126119001,0.36136001,94223.0,94205.0,0.3608]
[1732126119185,0.02063998,94219.0,94205.0,0.3608]
[1732126119391,0.36136001,94223.0,94214.0,0.3608]
[1732126119587,0.00056001,94223.0,94215.0,0.2032]
[1732126119795,0.061496,94220.0,94219.0,0.15473806]
[1732126123698,0.053006,94220.0,94219.0,0.15473806]
[1732126127602,0.053006,94220.0,94215.0,0.04197945]
[1732126127603,0.053008,94216.0,94215.0,0.04197945]
[1732126127905,0.053008,94216.0,94215.0,0.16312]
[1732126128294,0.053011,94211.0,94210.0,0.15473806]
[1732126128492,0.053011,94211.0,94210.0,0.31785806]
[1732126130394,0.053011,94211.0,94210.0,0.28585806]
[1732126130806,0.053011,94211.0,94210.0,0.3276874]
[1732126131499,0.413811,94211.0,94210.0,0.3276874]
[1732126132005,0.053011,94211.0,94210.0,0.3276874]
[1732126132705,0.40297959,94222.0,94210.0,0.3276874]
[1732126133007,0.053006,94220.0,94219.0,0.15473806]
[1732126133501,0.061496,94220.0,94219.0,0.15473806]
[1732126134009,0.053,94231.0,94219.0,0.15473806]
[1732126134504,0.053,94231.0,94229.0,0.15473806]
[1732126134807,0.053,94231.0,94229.0,0.31785806]
[1732126135195,0.053,94230.0,94229.0,0.16312]
[1732126138506,0.053,94230.0,94229.0,0.31785806]
[1732126138708,0.053,94230.0,94229.0,0.31793473]
[1732126140700,0.053,94230.0,94229.0,0.16319667]
[1732126140906,0.053,94230.0,94229.0,0.20546128]
[1732126142412,0.053,94230.0,94229.0,0.18439166]
[1732126143312,0.37136,94230.0,94229.0,7.667e-05]
[1732126143706,0.61836,94230.0,94207.0,0.00136]
[1732126143904,0.053012,94209.0,94194.0,0.3608]
[1732126144105,0.00060001,94211.0,94208.0,0.3608]
[1732126144308,0.3608,94243.0,94202.0,0.02119499]
[1732126144309,0.052979,94269.0,94221.0,0.053005]
[1732126144506,0.0624,94290.0,94260.0,0.15473806]
[1732126144507,0.052983,94261.0,94260.0,0.15473806]
[1732126144712,0.052983,94261.0,94260.0,0.36092904]
[1732126145506,0.38489549,94261.0,94260.0,4e-08]
[1732126145711,0.052984,94258.0,94257.0,0.32541751]
[1732126145912,0.052993,94243.0,94240.0,0.35074135]
[1732126146113,0.052993,94243.0,94235.0,0.3608]
[1732126146114,0.0309,94242.0,94241.0,0.29586146]
[1732126146308,0.052994,94241.0,94240.0,0.34679589]
[1732126146509,0.052994,94241.0,94240.0,0.36799088]
[1732126146823,0.052994,94241.0,94240.0,0.02119499]
[1732126148223,0.052994,94241.0,94240.0,0.36799088]
[1732126148915,0.052994,94241.0,94240.0,0.02119499]
[1732126149513,0.052994,94241.0,94239.0,0.3608]
[1732126149514,0.371314,94241.0,94239.0,0.3608]
[1732126149713,0.085395,94240.0,94239.0,0.3608]
[1732126149918,0.085395,94240.0,94226.0,0.34679589]
[1732126149919,0.052995,94239.0,94226.0,0.34679589]
[1732126150115,0.053001,94228.0,94227.0,0.34679589]
[1732126150428,0.053006,94219.0,94218.0,0.34679589]
[1732126150605,0.053002,94227.0,94214.0,0.34679589]
[1732126150606,0.053009,94215.0,94214.0,0.34679589]
[1732126150912,0.05309961,94215.0,94214.0,0.34996359]
[1732126151111,0.37153961,94215.0,94214.0,0.34996359]
[1732126151309,0.68530793,94215.0,94208.0,0.34996359]
[1732126151515,0.053014,94205.0,94204.0,0.43809251]
[1732126151723,0.053014,94205.0,94204.0,0.34953906]
[1732126151912,0.371454,94205.0,94204.0,0.34953906]
[1732126153015,0.38528457,94205.0,94204.0,0.34953906]
[1732126153311,0.31844,94205.0,94200.0,0.34953906]
[1732126153512,0.053015,94203.0,94201.0,0.34953906]
[1732126153719,0.053017,94200.0,94199.0,0.00010076]
[1732126154015,0.22075447,94200.0,94199.0,0.00010076]
[1732126154219,0.52536398,94200.0,94199.0,0.29651227]
[1732126154807,0.82536398,94200.0,94199.0,0.23076427]
[1732126155013,0.82536398,94200.0,94199.0,0.17772627]
[1732126155217,0.82536398,94200.0,94187.0,0.3608]
[1732126155421,0.053024,94188.0,94187.0,0.3608]
[1732126156425,0.053024,94188.0,94187.0,0.56769098]
[1732126156625,0.053021,94193.0,94190.0,0.053022]
[1732126156921,0.053021,94193.0,94192.0,0.3608]
[1732126157218,0.0323,94220.0,94192.0,0.71126075]
[1732126157420,0.053011,94211.0,94210.0,0.31253526]
[1732126157617,0.053011,94211.0,94209.0,0.31253526]
[1732126157820,0.053012,94209.0,94208.0,0.3608]
[1732126158327,0.371452,94209.0,94208.0,0.3608]
[1732126158707,0.053012,94209.0,94208.0,0.3608]
[1732126158908,0.05302,94194.0,94193.0,0.35046075]
[1732126159116,0.05302,94194.0,94192.0,0.3608]
[1732126161421,0.05302,94194.0,94193.0,0.0327]
[1732126161820,0.05302,94194.0,94192.0,0.3608]
[1732126162119,0.00849,94193.0,94192.0,0.3608]
[1732126162525,0.00849,94193.0,94192.0,0.36236]
[1732126162717,0.00849,94193.0,94192.0,0.3608]
[1732126165918,0.00849,94193.0,94192.0,0.73534772]
[1732126166124,0.061511,94193.0,94192.0,0.3608]
[1732126167318,0.379993,94193.0,94192.0,0.31214005]
[1732126167629,0.379993,94193.0,94180.0,0.0327]
[1732126167630,0.053029,94181.0,94180.0,0.37454772]
[1732126167931,0.053029,94181.0,94166.0,0.3608]
[1732126167932,0.053033,94175.0,94166.0,0.3608]
[1732126168230,0.56769998,94175.0,94174.0,0.24990281]
[1732126168432,0.371593,94174.0,94173.0,0.07911483]
[1732126168628,0.053044,94156.0,94155.0,0.3608]
[1732126168828,0.053039,94164.0,94144.0,0.00156]
[1732126168829,0.05305,94145.0,94144.0,0.00156]
[1732126169038,0.05305,94145.0,94144.0,0.29460057]
[1732126169329,0.05313883,94145.0,94144.0,0.29460057]
[1732126170027,0.05313883,94145.0,94144.0,0.65540057]
[1732126170422,8.883e-05,94145.0,94144.0,0.80926755]
[1732126170629,8.883e-05,94145.0,94144.0,0.86231755]
[1732126170828,0.3608,94166.0,94144.0,0.96384755]
[1732126171019,0.3608,94166.0,94158.0,0.3608]
[1732126171020,0.053042,94159.0,94158.0,0.3608]
[1732126171732,0.05317697,94159.0,94158.0,0.3608]
[1732126171926,0.05317697,94159.0,94144.0,0.288212]
[1732126171927,0.05305,94145.0,94144.0,0.288212]
[1732126172128,0.05305,94145.0,94140.0,0.00011291]
[1732126172129,0.053052,94141.0,94140.0,9.1e-07]
[1732126172331,0.413852,94141.0,94140.0,9.1e-07]
[1732126172529,0.74609332,94141.0,94140.0,9.1e-07]
[1732126172927,1.04609332,94141.0,94140.0,9.1e-07]
[1732126173929,0.74609332,94141.0,94140.0,9.1e-07]
[1732126174534,0.42741332,94141.0,94140.0,9.1e-07]
[1732126175137,0.46366276,94141.0,94140.0,9.1e-07]
[1732126176235,0.48541259,94141.0,94140.0,9.1e-07]
[1732126176835,0.44916315,94141.0,94140.0,9.1e-07]
[1732126177032,0.06661332,94141.0,94140.0,9.1e-07]
[1732126177426,0.06661332,94141.0,94140.0,0.28970148]
[1732126178144,0.06661332,94141.0,94140.0,9.1e-07]
[1732126178653,0.06669864,94141.0,94140.0,9.1e-07]
[1732126179441,0.053052,94141.0,94140.0,0.28970148]
[1732126180145,0.053052,94141.0,94140.0,9.1e-07]
[1732126180447,0.07508177,94141.0,94140.0,9.1e-07]
[1732126181433,0.40039262,94141.0,94140.0,9.1e-07]
[1732126182539,0.08171262,94141.0,94140.0,9.1e-07]
[1732126182742,0.09813806,94141.0,94140.0,9.1e-07]
[1732126183044,0.08171262,94141.0,94140.0,9.1e-07]
[1732126184854,0.08171262,94141.0,94140.0,0.28970148]
[1732126185738,0.0816898,94141.0,94140.0,0.28970148]
[1732126188433,0.4424898,94141.0,94140.0,9.1e-07]
[1732126189451,0.43587114,94141.0,94140.0,9.1e-07]
[1732126189642,0.44250207,94141.0,94140.0,9.1e-07]
[1732126191046,0.47912742,94141.0,94140.0,9.1e-07]
[1732126191237,0.49303801,94141.0,94140.0,9.1e-07]
[1732126192240,0.45047735,94141.0,94140.0,9.1e-07]
[1732126192440,0.49306479,94141.0,94140.0,9.1e-07]
[1732126192636,0.81174479,94141.0,94140.0,9.1e-07]
[1732126193143,0.49306479,94141.0,94140.0,9.1e-07]
[1732126194045,0.79306479,94141.0,94127.0,9.1e-07]
[1732126194244,0.20692498,94128.0,94127.0,9.1e-07]
[1732126194448,0.09564544,94128.0,94127.0,9.1e-07]
[1732126195445,0.09564544,94128.0,94127.0,0.28970148]
[1732126195649,0.09484241,94128.0,94127.0,0.28970148]
[1732126196036,0.08967735,94141.0,94127.0,0.28970148]
[1732126196037,0.01648615,94133.0,94127.0,0.28970148]
[1732126196339,0.01649995,94138.0,94132.0,0.51466698]
[1732126196540,0.05317497,94159.0,94137.0,0.3608]
[1732126196541,0.00013497,94159.0,94137.0,0.3608]
[1732126196735,0.00013497,94159.0,94149.0,0.51466698]
[1732126196938,0.05317497,94159.0,94158.0,0.3608]
[1732126197464,0.05317497,94159.0,94158.0,0.65050057]
[1732126197840,0.0368462,94179.0,94158.0,0.65050057]
[1732126198048,0.053035,94168.0,94167.0,0.3608]
[1732126198251,0.053035,94168.0,94167.0,0.65050057]
[1732126198745,0.05315004,94168.0,94167.0,0.65050057]
[1732126199668,0.00011504,94168.0,94167.0,0.68260057]
[1732126199948,0.057919,94197.0,94167.0,1.16060057]
[1732126200137,0.057919,94197.0,94180.0,0.67355143]
[1732126200138,0.053019,94197.0,94180.0,0.67355143]
[1732126200342,0.053019,94197.0,94180.0,0.3608]
[1732126200343,0.053028,94181.0,94180.0,0.3608]
[1732126200539,0.053028,94181.0,94180.0,0.65050057]
[1732126200948,0.05316213,94181.0,94180.0,0.65050057]
[1732126201257,0.05316213,94181.0,94180.0,0.96302107]
[1732126201439,0.06829159,94199.0,94180.0,0.96302107]
[1732126201440,0.053014,94206.0,94180.0,0.96911921]
[1732126201645,0.053014,94206.0,94193.0,0.3608]
[1732126201646,0.05302,94194.0,94193.0,0.3608]
[1732126201846,0.05302,94194.0,94193.0,0.65050057]
[1732126202546,0.05310615,94194.0,94193.0,0.65050057]
[1732126204254,0.05310615,94194.0,94193.0,0.80986057]
[1732126204255,8.615e-05,94194.0,94193.0,0.80986057]
[1732126207360,8.615e-05,94194.0,94193.0,1.12834057]
[1732126207655,0.053012,94210.0,94198.0,0.053018]
[1732126207845,0.00071,94216.0,94209.0,0.3608]
[1732126208048,0.05301,94213.0,94210.0,0.15936]
[1732126208250,0.053011,94212.0,94210.0,0.15936]
[1732126208454,0.053011,94212.0,94210.0,0.39604857]
[1732126209147,4.66e-05,94213.0,94210.0,0.39604857]